fUSD/lending_fUSD_20250219
["ID","MTS","AMOUNT","RATE_DAILY","PERIOD"]
[353650849,1739981476805,-2637.31,0.00013425,2]
[353650850,1739981476815,-3369.24,0.00013425,2]
[353650851,1739981476824,-2313.16,0.00013425,2]
[353650852,1739981476835,-2995.01,0.00013425,2]
[353650853,1739981476844,-712.7,0.00013425,2]
[353650854,1739981476854,-1878.14,0.00013425,2]
[353650855,1739981476864,-3482.35,0.00013425,2]
[353650856,1739981476873,-219.89780956,0.00013426,2]
[353650857,1739981476882,-151.0,0.00013426,2]
[353650858,1739981476892,-521.328176,0.00013426,2]
[353650859,1739981476901,-521.328171,0.00013426,2]
[353650860,1739981476911,-151.0,0.00013426,2]
[353650861,1739981476920,-500.0,0.00013427,2]
[353650862,1739981476930,-500.0,0.00013427,2]
[353650863,1739981476939,-500.0,0.00013427,2]
[353650864,1739981476948,-603.15354701,0.00013427,2]
[353650865,1739981476958,-500.0,0.00013427,2]
[353650866,1739981476968,-500.0,0.00013427,2]
[353650867,1739981476977,-635.4667227,0.00013427,2]
[353650868,1739981476986,-500.0,0.00013427,2]
[353650869,1739981476996,-151.0,0.00013427,2]
[353650870,1739981477005,-151.0,0.00013427,2]
[353650871,1739981477015,-299.3439788,0.00013427,2]
[353650872,1739981477024,-500.0,0.00013427,2]
[353650873,1739981477033,-212.73284906,0.00013427,2]
[353650874,1739981477043,-500.92975285,0.00013427,2]
[353650875,1739981477053,-500.0,0.00013427,2]
[353650876,1739981477062,-151.0,0.00013427,2]
[353650877,1739981477072,-151.0,0.00013427,2]
[353650878,1739981477083,-151.0,0.00013427,2]
[353650879,1739981477092,-151.0,0.00013427,2]
[353650880,1739981477102,-500.0,0.00013427,2]
[353650881,1739981477111,-500.0,0.00013427,2]
[353650882,1739981477120,-1535.79,0.00013427,2]
[353650883,1739981477130,-1449.28,0.00013427,2]
[353650884,1739981477139,-500.0,0.00013427,2]
[353650885,1739981477148,-500.0,0.00013427,2]
[353650886,1739981477157,-689.66,0.00013427,2]
[353650887,1739981477167,-626.67,0.00013427,2]
[353650888,1739981477177,-500.0,0.00013427,2]
[353650889,1739981477186,-500.0,0.00013427,2]
[353650890,1739981477196,-500.0,0.00013427,2]
[353650891,1739981477205,-892.5,0.00013427,2]
[353650892,1739981477214,-635.4,0.00013427,2]
[353650893,1739981477226,-1020.58,0.00013427,2]
[353650894,1739981477235,-500.0,0.00013427,2]
[353650895,1739981477245,-1376.01,0.00013427,2]
[353650896,1739981477254,-1010.23,0.00013427,2]
[353650897,1739981477263,-626.49,0.00013427,2]
[353650898,1739981477272,-500.0,0.00013427,2]
[353650899,1739981477281,-1631.89,0.00013427,2]
[353650900,1739981477291,-1015.89,0.00013427,2]
[353650901,1739981477299,-1131.8,0.00013427,2]
[353650902,1739981477310,-1756.52,0.00013427,2]
[353650903,1739981477319,-871.64,0.00013427,2]
[353650904,1739981477328,-1783.34,0.00013427,2]
[353650905,1739981477339,-1957.66,0.00013427,2]
[353650906,1739981477348,-2131.64,0.00013427,2]
[353650907,1739981477357,-811.33,0.00013427,2]
[353650908,1739981477367,-1102.02,0.00013427,2]
[353650909,1739981477376,-646.37,0.00013427,2]
[353650910,1739981477385,-2003.49,0.00013427,2]
[353650911,1739981477394,-1585.53,0.00013427,2]
[353650912,1739981477403,-2113.06,0.00013427,2]
[353650913,1739981477412,-864.26,0.00013427,2]
[353650914,1739981477422,-1784.94,0.00013427,2]
[353650915,1739981477431,-802.26,0.00013427,2]
[353650916,1739981477440,-1323.45,0.00013427,2]
[353650917,1739981477449,-674.84,0.00013427,2]
[353650918,1739981477458,-1042.13,0.00013427,2]
[353650919,1739981477468,-500.0,0.00013427,2]
[353650920,1739981477477,-2918.0,0.00013427,2]
[353650921,1739981477486,-500.0,0.00013427,2]
[353650922,1739981477495,-500.0,0.00013427,2]
[353650923,1739981477505,-500.0,0.00013427,2]
[353650924,1739981477514,-500.0,0.00013427,2]
[353650925,1739981477523,-501.091095,0.00013427,2]
[353650926,1739981477532,-803.91,0.00013427,2]
[353650927,1739981477542,-500.0,0.00013427,2]
[353650928,1739981477551,-822.2,0.00013427,2]
[353650929,1739981477560,-500.0,0.00013427,2]
[353650930,1739981477570,-1819.96,0.00013427,2]
[353650931,1739981477579,-1721.94,0.00013427,2]
[353650932,1739981477590,-151.0,0.00013428,2]
[353650933,1739981477599,-824.51,0.00013428,2]
[353650934,1739981477609,-500.0,0.00013428,2]
[353650935,1739981477618,-500.0,0.00013428,2]
[353650936,1739981477628,-500.0,0.00013428,2]
[353650937,1739981477638,-559.16,0.00013428,2]
[353650938,1739981477648,-500.0,0.00013428,2]
[353650939,1739981477657,-500.0,0.00013428,2]
[353650940,1739981477668,-616.83,0.00013428,2]
[353650941,1739981477678,-500.0,0.00013428,2]
[353650942,1739981477688,-500.0,0.00013428,2]
[353650943,1739981477698,-500.0,0.00013428,2]
[353650944,1739981477707,-500.0,0.00013428,2]
[353650945,1739981477717,-856.21,0.00013428,2]
[353650946,1739981477727,-500.0,0.00013428,2]
[353650947,1739981477736,-500.0,0.00013428,2]
[353650948,1739981477746,-500.0,0.00013428,2]
[353650949,1739981477756,-509.09,0.00013428,2]
[353650950,1739981477767,-820.84,0.00013428,2]
[353650951,1739981477777,-500.0,0.00013428,2]
[353650952,1739981477788,-500.0,0.00013428,2]
[353650953,1739981477798,-500.0,0.00013428,2]
[353650954,1739981477808,-500.0,0.00013428,2]
[353650955,1739981477818,-500.0,0.00013428,2]
[353650956,1739981477828,-500.0,0.00013428,2]
[353650957,1739981477842,-577.31,0.00013428,2]
[353650958,1739981477852,-500.0,0.00013428,2]
[353650959,1739981477862,-554.36,0.00013428,2]
[353650960,1739981477872,-500.0,0.00013428,2]
[353650961,1739981477882,-500.0,0.00013428,2]
[353650962,1739981477892,-923.34,0.00013428,2]
[353650963,1739981477901,-500.0,0.00013428,2]
[353650964,1739981477911,-500.0,0.00013428,2]
[353650965,1739981477921,-500.0,0.00013428,2]
[353650966,1739981477931,-500.0,0.00013428,2]
[353650967,1739981477944,-500.0,0.00013428,2]
[353650968,1739981477954,-500.0,0.00013428,2]
[353650969,1739981477964,-641.57,0.00013428,2]
[353650970,1739981477974,-823.53,0.00013428,2]
[353650971,1739981477984,-500.0,0.00013428,2]
[353650972,1739981477994,-500.0,0.00013428,2]
[353650973,1739981478008,-2918.0,0.00013428,2]
[353650974,1739981478019,-1819.96,0.00013428,2]
[353650975,1739981478029,-150.0,0.0001343,2]
[353650976,1739981478039,-150.0,0.00013433,2]
[353650977,1739981478050,-150.0,0.00013434,2]
[353650978,1739981478059,-150.0,0.00013439,2]
[353650979,1739981478070,-151.0,0.00013443,2]
[353650980,1739981478080,-3123.56,0.00013446,2]
[353650981,1739981478091,-2507.0,0.00013446,2]
[353650982,1739981478101,-2530.66,0.00013446,2]
[353650983,1739981478112,-2794.35,0.00013446,2]
[353650984,1739981478122,-3189.29,0.00013446,2]
[353650985,1739981478132,-643.31,0.00013446,2]
[353650986,1739981478143,-1712.35,0.00013446,2]
[353650987,1739981478154,-500.0,0.00013446,2]
[353650988,1739981478165,-1440.08,0.00013446,2]
[353650989,1739981478176,-3073.73,0.00013446,2]
[353650990,1739981478186,-500.0,0.00013446,2]
[353650991,1739981478197,-749.49,0.00013446,2]
[353650992,1739981478208,-1664.91,0.00013446,2]
[353650993,1739981478219,-1453.44,0.00013446,2]
[353650994,1739981478230,-1783.85,0.00013446,2]
[353650995,1739981478241,-3722.51,0.00013446,2]
[353650996,1739981478251,-150.0,0.00013448,2]
[353650997,1739981478260,-151.0,0.0001345,2]
[353650998,1739981478270,-151.0,0.0001345,2]
[353650999,1739981478280,-150.0,0.0001345,2]
[353651000,1739981478290,-160.25223,0.00013451,2]
[353651001,1739981478300,-674.84,0.00013451,2]
[353651002,1739981478314,-674.84,0.00013451,2]
[353651003,1739981478324,-2918.0,0.00013451,2]
[353651004,1739981478336,-1819.96,0.00013451,2]
[353651005,1739981478346,-1721.94,0.00013451,2]
[353651006,1739981478356,-500.0,0.00013452,2]
[353651007,1739981478367,-150.0,0.00013452,2]
[353651008,1739981478377,-150.0,0.00013452,2]
[353651009,1739981478388,-152.25342162,0.00013452,2]
[353651010,1739981478399,-673.0,0.00013452,2]
[353651011,1739981478409,-251253.0,0.00013452,2]
[353651012,1739981478419,-631.48725845,0.00013452,2]
[353651013,1739981478430,-150.0,0.00013454,2]
[353651014,1739981478441,-150.0,0.00013455,2]
[353651015,1739981478450,-219.18838361,0.00013455,2]
[353651016,1739981478460,-150.0,0.00013455,2]
[353651017,1739981478470,-9249.59478979,0.00013456,2]
[353651018,1739981478480,-150.0,0.00013456,2]
[353651019,1739981478489,-150.0,0.00013458,2]
[353651020,1739981478499,-6974.50663371,0.00013461,2]
[353651021,1739981478510,-150.0,0.00013464,2]
[353651022,1739981478521,-150.0,0.00013465,2]
[353651023,1739981478531,-2918.0,0.00013475,2]
[353651024,1739981478541,-504.30145883,0.00013479,2]
[353651025,1739981478552,-150.0,0.00013479,2]
[353651026,1739981478562,-673.0,0.00013479,2]
[353651027,1739981478572,-194.17463792,0.0001348,2]
[353651028,1739981478584,-1819.96,0.00013481,2]
[353651029,1739981478594,-150.0,0.00013484,2]
[353651030,1739981478606,-150.0,0.00013491,2]
[353651031,1739981478617,-1908.72,0.00013496,2]
[353651032,1739981478628,-1724.21,0.00013496,2]
[353651033,1739981478638,-1183.16,0.00013496,2]
[353651034,1739981478648,-3635.95,0.00013496,2]
[353651035,1739981478658,-508.07,0.00013496,2]
[353651036,1739981478669,-2957.13,0.00013496,2]
[353651037,1739981478680,-1260.75,0.00013496,2]
[353651038,1739981478690,-3370.75,0.00013496,2]
[353651039,1739981478700,-4466.71,0.00013496,2]
[353651040,1739981478710,-2861.46,0.00013496,2]
[353651041,1739981478720,-1037.25,0.00013496,2]
[353651042,1739981478730,-4057.21,0.00013496,2]
[353651043,1739981478741,-500.0,0.00013496,2]
[353651044,1739981478751,-1354.31,0.00013496,2]
[353651045,1739981478761,-1288.25,0.00013496,2]
[353651046,1739981478771,-3219.78,0.00013496,2]
[353651047,1739981478781,-500.0,0.00013496,2]
[353651048,1739981478792,-1678.83,0.00013497,2]
[353651049,1739981478802,-1847.3542,0.00013497,2]
[353651050,1739981478812,-1846.29,0.00013497,2]
[353651051,1739981478822,-1592.48,0.00013497,2]
[353651052,1739981478834,-1773.020173,0.00013497,2]
[353651053,1739981478844,-2705.75,0.00013497,2]
[353651054,1739981478854,-159.64705,0.00013497,2]
[353651055,1739981478864,-2407.49,0.00013497,2]
[353651056,1739981478873,-767.18,0.00013497,2]
[353651057,1739981478883,-1005.99,0.00013497,2]
[353651058,1739981478893,-500.0,0.00013497,2]
[353651059,1739981478903,-1902.19,0.00013497,2]
[353651060,1739981478913,-2400.24,0.00013497,2]
[353651061,1739981478923,-2120.53,0.00013497,2]
[353651062,1739981478933,-2293.3,0.00013497,2]
[353651063,1739981478946,-2929.98,0.00013497,2]
[353651064,1739981478956,-4447.72,0.00013497,2]
[353651065,1739981478967,-1962.14,0.00013497,2]
[353651066,1739981478977,-2210.96,0.00013497,2]
[353651067,1739981478987,-500.0,0.00013497,2]
[353651068,1739981478998,-3551.16,0.00013497,2]
[353651069,1739981479007,-2946.14,0.00013497,2]
[353651070,1739981479018,-2431.17,0.00013497,2]
[353651071,1739981479028,-5965.08,0.00013497,2]
[353651072,1739981479039,-9795.57,0.00013497,2]
[353651073,1739981479049,-1863.21,0.00013497,2]
[353651074,1739981479060,-3674.44,0.00013497,2]
[353651075,1739981479071,-1362.54,0.00013497,2]
[353651076,1739981479081,-4172.34,0.00013497,2]
[353651077,1739981479092,-2438.27,0.00013497,2]
[353651078,1739981479102,-2658.27,0.00013497,2]
[353651079,1739981479112,-586.28,0.00013497,2]
[353651080,1739981479122,-2845.19,0.00013497,2]
[353651081,1739981479132,-2996.47,0.00013497,2]
[353651082,1739981479142,-500.0,0.00013498,2]
[353651083,1739981479152,-500.0,0.00013498,2]
[353651084,1739981479162,-500.0,0.00013498,2]
[353651085,1739981479173,-587.39,0.00013498,2]
[353651086,1739981479183,-500.0,0.00013498,2]
[353651087,1739981479194,-500.0,0.00013498,2]
[353651088,1739981479204,-500.0,0.00013498,2]
[353651089,1739981479213,-500.0,0.00013498,2]
[353651090,1739981479227,-1235.18,0.00013498,2]
[353651091,1739981479236,-500.0,0.00013498,2]
[353651092,1739981479246,-500.0,0.00013498,2]
[353651093,1739981479256,-500.0,0.00013498,2]
[353651094,1739981479267,-515.08,0.00013498,2]
[353651095,1739981479277,-500.0,0.00013498,2]
[353651096,1739981479287,-500.0,0.00013498,2]
[353651097,1739981479297,-500.0,0.00013498,2]
[353651098,1739981479307,-500.0,0.00013498,2]
[353651099,1739981479318,-500.0,0.00013498,2]
[353651100,1739981479328,-613.79,0.00013498,2]
[353651101,1739981479339,-500.0,0.00013498,2]
[353651102,1739981479349,-500.0,0.00013498,2]
[353651103,1739981479359,-500.0,0.00013498,2]
[353651104,1739981479368,-500.0,0.00013498,2]
[353651105,1739981479378,-835.95,0.00013498,2]
[353651106,1739981479388,-500.0,0.00013498,2]
[353651107,1739981479398,-500.0,0.00013498,2]
[353651108,1739981479408,-727.59,0.00013498,2]
[353651109,1739981479417,-500.0,0.00013498,2]
[353651110,1739981479427,-500.0,0.00013498,2]
[353651111,1739981479437,-1297.65,0.00013498,2]
[353651112,1739981479447,-500.0,0.00013498,2]
[353651113,1739981479457,-500.0,0.00013498,2]
[353651114,1739981479467,-500.0,0.00013498,2]
[353651115,1739981479477,-500.0,0.00013498,2]
[353651116,1739981479488,-508.3273755,0.00013498,2]
[353651117,1739981479497,-500.0,0.00013498,2]
[353651118,1739981479507,-500.0,0.00013498,2]
[353651119,1739981479517,-1049.75,0.00013498,2]
[353651120,1739981479527,-500.0,0.00013498,2]
[353651121,1739981479537,-1342.98,0.00013498,2]
[353651122,1739981479546,-500.0,0.00013498,2]
[353651123,1739981479557,-500.0,0.00013498,2]
[353651124,1739981479567,-867.0,0.00013498,2]
[353651125,1739981479577,-719.27,0.00013498,2]
[353651126,1739981479587,-1030.03,0.00013498,2]
[353651127,1739981479596,-548.74,0.00013498,2]
[353651128,1739981479605,-500.0,0.00013498,2]
[353651129,1739981479615,-1391.91,0.00013498,2]
[353651130,1739981479625,-500.0,0.00013498,2]
[353651131,1739981479635,-500.0,0.00013498,2]
[353651132,1739981479646,-500.0,0.00013498,2]
[353651133,1739981479656,-591.81,0.00013498,2]
[353651134,1739981479666,-680.74,0.00013498,2]
[353651135,1739981479676,-500.0,0.00013498,2]
[353651136,1739981479686,-500.0,0.00013498,2]
[353651137,1739981479696,-500.0,0.00013498,2]
[353651138,1739981479706,-500.0,0.00013498,2]
[353651139,1739981479716,-605.62,0.00013498,2]
[353651140,1739981479726,-719.0,0.00013498,2]
[353651141,1739981479735,-500.0,0.00013498,2]
[353651142,1739981479746,-500.0,0.00013498,2]
[353651143,1739981479756,-851.56,0.00013498,2]
[353651144,1739981479766,-858.88,0.00013498,2]
[353651145,1739981479776,-500.0,0.00013498,2]
[353651146,1739981479786,-500.0,0.00013498,2]
[353651147,1739981479796,-614.55,0.00013498,2]
[353651148,1739981479805,-525.51,0.00013498,2]
[353651149,1739981479818,-500.0,0.00013498,2]
[353651150,1739981479828,-500.0,0.00013498,2]
[353651151,1739981479839,-969.29,0.00013498,2]
[353651152,1739981479849,-500.0,0.00013498,2]
[353651153,1739981479859,-500.0,0.00013498,2]
[353651154,1739981479869,-578.62,0.00013498,2]
[353651155,1739981479879,-500.0,0.00013498,2]
[353651156,1739981479888,-684.04,0.00013498,2]
[353651157,1739981479898,-659.34,0.00013498,2]
[353651158,1739981479908,-814.31,0.00013498,2]
[353651159,1739981479918,-500.0,0.00013498,2]
[353651160,1739981479928,-573.2,0.00013498,2]
[353651161,1739981479938,-500.0,0.00013498,2]
[353651162,1739981479947,-500.0,0.00013498,2]
[353651163,1739981479958,-1087.37,0.00013498,2]
[353651164,1739981479968,-847.22,0.00013498,2]
[353651165,1739981479979,-1103.2,0.00013498,2]
[353651166,1739981479989,-953.51,0.00013498,2]
[353651167,1739981479999,-500.0,0.00013498,2]
[353651168,1739981480008,-500.0,0.00013498,2]
[353651169,1739981480019,-500.0,0.00013498,2]
[353651170,1739981480029,-500.0,0.00013498,2]
[353651171,1739981480039,-757.2,0.00013498,2]
[353651172,1739981480050,-1161.96,0.00013498,2]
[353651173,1739981480060,-500.0,0.00013498,2]
[353651174,1739981480071,-1434.63,0.00013498,2]
[353651175,1739981480081,-500.0,0.00013498,2]
[353651176,1739981480092,-616.78073685,0.00013498,2]
[353651177,1739981480102,-500.0,0.00013498,2]
[353651178,1739981480330,-500.0,0.00013498,2]
[353651179,1739981480350,-500.0,0.00013498,2]
[353651180,1739981480360,-721.96,0.00013498,2]
[353651181,1739981480370,-500.0,0.00013498,2]
[353651182,1739981480379,-500.0,0.00013498,2]
[353651183,1739981480388,-500.0,0.00013498,2]
[353651184,1739981480398,-500.0,0.00013498,2]
[353651185,1739981480407,-500.0,0.00013498,2]
[353651186,1739981480416,-500.0,0.00013498,2]
[353651187,1739981480426,-500.0,0.00013498,2]
[353651188,1739981480435,-553.45226225,0.00013498,2]
[353651189,1739981480445,-500.0,0.00013498,2]
[353651190,1739981480454,-500.0,0.00013498,2]
[353651191,1739981480463,-593.41,0.00013498,2]
[353651192,1739981480472,-505.55222749,0.00013498,2]
[353651193,1739981480481,-500.0,0.00013498,2]
[353651194,1739981480491,-500.0,0.00013498,2]
[353651195,1739981480500,-500.0,0.00013498,2]
[353651196,1739981480510,-500.0,0.00013498,2]
[353651197,1739981480520,-500.0,0.00013498,2]
[353651198,1739981480529,-514.55,0.00013498,2]
[353651199,1739981480539,-500.0,0.00013498,2]
[353651200,1739981480548,-500.0,0.00013498,2]
[353651201,1739981480557,-658.19,0.00013498,2]
[353651202,1739981480567,-500.0,0.00013498,2]
[353651203,1739981480577,-500.0,0.00013498,2]
[353651204,1739981480588,-500.0,0.00013498,2]
[353651205,1739981480597,-500.0,0.00013498,2]
[353651206,1739981480607,-500.0,0.00013498,2]
[353651207,1739981480617,-500.0,0.00013498,2]
[353651208,1739981480626,-500.0,0.00013498,2]
[353651209,1739981480636,-907.8,0.00013498,2]
[353651210,1739981480646,-500.0,0.00013498,2]
[353651211,1739981480655,-500.0,0.00013498,2]
[353651212,1739981480665,-500.0,0.00013498,2]
[353651213,1739981480674,-500.0,0.00013498,2]
[353651214,1739981480684,-500.0,0.00013498,2]
[353651215,1739981480693,-518.56,0.00013498,2]
[353651216,1739981480703,-842.91,0.00013498,2]
[353651217,1739981480712,-910.58,0.00013498,2]
[353651218,1739981480721,-500.0,0.00013498,2]
[353651219,1739981480731,-500.0,0.00013498,2]
[353651220,1739981480740,-500.0,0.00013498,2]
[353651221,1739981480750,-500.0,0.00013498,2]
[353651222,1739981480760,-500.0,0.00013498,2]
[353651223,1739981480769,-491.0,0.00013498,2]
[353651224,1739981480779,-1700.48,0.00013498,2]
[353651225,1739981480789,-500.0,0.00013498,2]
[353651226,1739981480798,-500.0,0.00013498,2]
[353651227,1739981480808,-500.0,0.00013498,2]
[353651228,1739981480818,-304.53541682,0.00013498,2]
[353651229,1739981480827,-1467.07,0.00013498,2]
[353651230,1739981480838,-654.58,0.00013498,2]
[353651231,1739981480848,-500.0,0.00013498,2]
[353651232,1739981480858,-846.23,0.00013498,2]
[353651233,1739981480868,-500.0,0.00013498,2]
[353651234,1739981480878,-500.0,0.00013498,2]
[353651235,1739981480887,-508.72,0.00013498,2]
[353651236,1739981480896,-500.0,0.00013498,2]
[353651237,1739981480906,-886.41,0.00013498,2]
[353651238,1739981480915,-500.0,0.00013498,2]
[353651239,1739981480925,-500.0,0.00013498,2]
[353651240,1739981480934,-500.0,0.00013498,2]
[353651241,1739981480943,-636.92047586,0.00013498,2]
[353651242,1739981480952,-500.0,0.00013498,2]
[353651243,1739981480962,-500.0,0.00013498,2]
[353651244,1739981480971,-500.0,0.00013498,2]
[353651245,1739981480981,-578.97,0.00013498,2]
[353651246,1739981480991,-1547.71,0.00013498,2]
[353651247,1739981481000,-500.0,0.00013498,2]
[353651248,1739981481010,-1667.54,0.00013498,2]
[353651249,1739981481019,-500.0,0.00013498,2]
[353651250,1739981481029,-500.0,0.00013498,2]
[353651251,1739981481039,-500.0,0.00013498,2]
[353651252,1739981481049,-679.7,0.00013498,2]
[353651253,1739981481059,-500.0,0.00013498,2]
[353651254,1739981481069,-512.51,0.00013498,2]
[353651255,1739981481079,-672.54,0.00013498,2]
[353651256,1739981481090,-771.34,0.00013498,2]
[353651257,1739981481100,-1642.33,0.00013498,2]
[353651258,1739981481111,-623.02,0.00013498,2]
[353651259,1739981481121,-700.88,0.00013498,2]
[353651260,1739981481131,-1763.07,0.00013498,2]
[353651261,1739981481140,-1058.8,0.00013498,2]
[353651262,1739981481151,-500.0,0.00013498,2]
[353651263,1739981481161,-600.7,0.00013498,2]
[353651264,1739981481171,-1534.82,0.00013498,2]
[353651265,1739981481181,-1442.91,0.00013498,2]
[353651266,1739981481193,-745.68,0.00013498,2]
[353651267,1739981481202,-838.32,0.00013498,2]
[353651268,1739981481212,-500.0,0.00013498,2]
[353651269,1739981481222,-500.0,0.00013498,2]
[353651270,1739981481235,-1071.12,0.00013498,2]
[353651271,1739981481245,-586.27,0.00013498,2]
[353651272,1739981481255,-1123.84,0.00013498,2]
[353651273,1739981481265,-2348.96,0.00013498,2]
[353651274,1739981481275,-500.0,0.00013498,2]
[353651275,1739981481284,-1050.15,0.00013498,2]
[353651276,1739981481294,-881.06,0.00013498,2]
[353651277,1739981481304,-500.0,0.00013498,2]
[353651278,1739981481315,-500.0,0.00013498,2]
[353651279,1739981481326,-500.0,0.00013498,2]
[353651280,1739981481336,-500.0,0.00013498,2]
[353651281,1739981481346,-500.0,0.00013498,2]
[353651282,1739981481355,-500.0,0.00013498,2]
[353651283,1739981481365,-500.0,0.00013498,2]
[353651284,1739981481374,-1721.94,0.00013498,2]
[353651285,1739981481383,-507.06963681,0.00013498,2]
[353651286,1739981481393,-500.0,0.00013498,2]
[353651287,1739981481403,-500.0,0.00013498,2]
[353651288,1739981481413,-1774.14,0.00013498,2]
[353651289,1739981481422,-357.4967627,0.00013498,2]
[353651290,1739981481432,-2626.88,0.00013498,2]
[353651291,1739981481441,-500.0,0.00013498,2]
[353651292,1739981481451,-4378.38,0.00013498,2]
[353651293,1739981481461,-4564.78,0.00013498,2]
[353651294,1739981481470,-500.0,0.00013498,2]
[353651295,1739981481479,-500.0,0.00013498,2]
[353651296,1739981481489,-1219.89,0.00013498,2]
[353651297,1739981481498,-500.0,0.00013498,2]
[353651298,1739981481508,-837.92,0.00013498,2]
[353651299,1739981481518,-1220.63,0.00013498,2]
[353651300,1739981481527,-705.79,0.00013498,2]
[353651301,1739981481537,-750.7,0.00013498,2]
[353651302,1739981481548,-2297.88,0.00013498,2]
[353651303,1739981481558,-1406.06,0.00013498,2]
[353651304,1739981481568,-598.52,0.00013498,2]
[353651305,1739981481578,-500.0,0.00013498,2]
[353651306,1739981481590,-4306.96,0.00013498,2]
[353651307,1739981481600,-508.2308956,0.00013498,2]
[353651308,1739981481610,-850.64,0.00013498,2]
[353651309,1739981481619,-1548.92,0.00013498,2]
[353651310,1739981481629,-4046.57,0.00013498,2]
[353651311,1739981481639,-500.0,0.00013498,2]
[353651312,1739981481649,-500.0,0.00013498,2]
[353651313,1739981481659,-500.0,0.00013498,2]
[353651314,1739981481669,-1817.06,0.00013498,2]
[353651315,1739981481678,-579.94,0.00013498,2]
[353651316,1739981481688,-537.41,0.00013498,2]
[353651317,1739981481697,-3247.97,0.00013498,2]
[353651318,1739981481707,-1393.67,0.00013498,2]
[353651319,1739981481716,-353.12578562,0.00013498,2]
[353651320,1739981481727,-3207.33,0.00013498,2]
[353651321,1739981481736,-500.0,0.00013498,2]
[353651322,1739981481746,-500.0,0.00013498,2]
[353651323,1739981481756,-506.55930212,0.00013498,2]
[353651324,1739981481766,-1068.57,0.00013498,2]
[353651325,1739981481776,-3221.83,0.00013498,2]
[353651326,1739981481786,-500.0,0.00013498,2]
[353651327,1739981481795,-509.24,0.00013498,2]
[353651328,1739981481805,-1032.47,0.00013498,2]
[353651329,1739981481815,-943.7,0.00013498,2]
[353651330,1739981481824,-2527.73,0.00013498,2]
[353651331,1739981481835,-561.48,0.00013498,2]
[353651332,1739981481845,-500.0,0.00013498,2]
[353651333,1739981481855,-1480.58,0.00013498,2]
[353651334,1739981481865,-2707.66,0.00013498,2]
[353651335,1739981481876,-580.48414098,0.00013498,2]
[353651336,1739981481886,-3022.84,0.00013498,2]
[353651337,1739981481896,-705.48,0.00013498,2]
[353651338,1739981481907,-500.0,0.00013498,2]
[353651339,1739981481917,-1400.94,0.00013498,2]
[353651340,1739981481926,-523.15,0.00013498,2]
[353651341,1739981481936,-1048.08,0.00013498,2]
[353651342,1739981481947,-737.53,0.00013498,2]
[353651343,1739981481957,-500.0,0.00013498,2]
[353651344,1739981481966,-934.73,0.00013498,2]
[353651345,1739981481977,-500.0,0.00013498,2]
[353651346,1739981481987,-591.76,0.00013498,2]
[353651347,1739981481996,-2935.54,0.00013498,2]
[353651348,1739981482007,-500.0,0.00013498,2]